[Event "Portugal-ch Seniors-50 2022"]
[Site "Atouguia da Baleia"]
[Date "2022.06.15"]
[Round "1.6"]
[White "Galvao, Henrique"]
[Black "Da Silva, Reinaldo S.B."]
[Result "1/2-1/2"]
[ECO "C02"]
[WhiteElo "2118"]
[BlackElo "2340"]
[Annotator "TA"]
[PlyCount "93"]
[EventDate "2022.06.09"]
[EventType "swiss"]
[EventCountry "POR"]
[SourceTitle "playchess.com"]
[Source "ChessBase"]
[SourceQuality "1"]
[TimeControl "5400+30"]

{[%evp 16,93,-17,-72,80,83,75,39,34,33,29,19,30,27,39,43,29,0,0,0,37,0,0,0,0,-12,-11,-14,-19,-43,-5,-83,-92,-79,-27,-37,-22,-76,-74,-86,-8,-84,-25,-25,0,0,0,0,0,0,0,0,0,0,0,0,0,0,0,0,0,0,0,0,859,784,1165,1122,1056,0,0,0,0,0,0,0,0,0,0,0]} 1. e4 {[%emt 0:00:03]} e6 {[%emt 0:00:09]} 2. d4 {[%emt 0:00:07]} d5 {[%emt 0:00:08]} 3. e5 {[%emt 0:00:50]} c5 {[%emt 0:00:16]} 4. c3 {[%emt 0:00:06]} Nc6 {[%emt 0:00:18]} 5. Nf3 {[%emt 0:00:08]} Bd7 {[%emt 0:00:56]} 6. Bd3 {[%emt 0:00:15]} cxd4 {[%emt 0:00:20]} 7. cxd4 {[%emt 0:00:23]} Qb6 {[%emt 0:00:41]} 8. O-O {[%emt 0:00:08]} Nxd4 {[%emt 0:02:07]} 9. Ng5 {[%emt 0:00:22] 9.Nbd2 is a critical line.} (9. Nbd2 $11) 9... Nf5 $2 {[%emt 0:01:08] C02: French: Advance Variation.} (9... Nc6 $17 {keeps the pressure on.} 10. Nf3 f6) 10. Bxf5 $16 {[%emt 0:02:01]} exf5 {[%emt 0:00:08]} 11. Qxd5 {[%emt 0:00:29]} Be6 {[%emt 0:00:54] White is slightly better.} 12. Nxe6 {[%emt 0:00:32]} fxe6 {[%emt 0:00:22]} 13. Qc4 {[%emt 0:00:36] [#]} Ne7 $146 {[%emt 0:05:34]} ({Predecessor:} 13... Bc5 14. Nc3 Rc8 15. Be3 Ne7 16. Na4 Bxe3 17. Nxb6 Rxc4 18. Nxc4 Bc5 19. Rfd1 Nd5 {1-0 (57) Steens,R (1749)-Kadenbach,W (1689) Germany 2014}) 14. Be3 {[%emt 0:03:46]} Qc6 {[%emt 0:00:20]} 15. Qb3 {[%emt 0:00:16]} Qd5 {[%emt 0:02:12]} 16. Qa4+ {[%emt 0:04:36]} Qc6 $1 {[%emt 0:02:47]} 17. Qb3 {[%emt 0:00:42]} Qd5 {[%emt 0:06:31]} 18. Nc3 {[%emt 0:02:42]} Qxb3 {[%emt 0:01:18]} 19. axb3 {[%emt 0:00:06][%cal Ba2b3,Bb3b4,Bb4b5][%mdl 32]} a6 {[%emt 0:00:27]} 20. b4 {[%emt 0:00:55]} Nc6 {[%emt 0:00:46]} 21. b5 {[%emt 0:00:09]} Nxe5 {[%emt 0:00:09]} 22. Bd4 {[%emt 0:01:30]} Nc4 {[%emt 0:01:50]} 23. Rfd1 {[%emt 0:08:32]} (23. Rfc1 $11) 23... Nxb2 $17 {[%emt 0:11:24]} 24. Rdb1 {[%emt 0:01:28] [#]} Nc4 {[%emt 0:00:10]} ({Black should play} 24... Nd3 $1 $17) 25. bxa6 $11 {[%emt 0:00:13]} Rxa6 {[%emt 0:01:12]} 26. Rxa6 {[%emt 0:04:08]} (26. Nb5 $1 $11 {keeps the balance.} Ke7 27. Rc1 Rxa1 28. Bxa1) 26... bxa6 $17 {[%emt 0:00:10]} 27. Rb7 {[%emt 0:00:41]} e5 {[%emt 0:04:04]} (27... Nd6 $17 28. Ra7 Rg8) 28. Ba7 {[%emt 0:03:59]} (28. Bc5 $1 $11 {remains equal.}) 28... Bd6 {[%emt 0:12:45]} (28... Rg8 $17) 29. Rxg7 $11 {[%emt 0:00:37]} e4 {[%emt 0:03:13]} 30. Bd4 {[%emt 0:01:14]} Be5 {[%emt 0:01:02]} 31. Bxe5 {[%emt 0:02:09]} Nxe5 {[%emt 0:00:26][%mdl 4096] Endgame KRN-KRN} 32. Ra7 {[%emt 0:03:19] Threatens to win with Ra8+.} O-O {[%emt 0:00:43]} 33. Nd5 {[%emt 0:00:53]} Rd8 {[%emt 0:11:39]} 34. Nf6+ {[%emt 0:02:04]} Kf8 {[%emt 0:00:09][%cal Rd8d1]} 35. Nxh7+ {[%emt 0:00:11]} Kg8 {[%emt 0:00:19][%cal Rd8d1]} 36. Nf6+ {[%emt 0:00:37]} Kf8 {[%emt 0:00:11][%cal Rd8d1]} 37. g4 {[%emt 0:16:20]} Rd6 38. Nh7+ Kg8 39. g5 ({Of course not} 39. gxf5 Nf3+ 40. Kg2 Rh6 $15) 39... Kh8 $2 {[%mdl 8192] [#]} (39... e3 $11 40. fxe3 (40. Nf6+ $2 Rxf6 41. Kf1 e2+ 42. Kxe2 Re6 $19) 40... Rd2) 40. Nf6 $1 $18 {[%csl Gf6][%cal Ra7h7]} Nf3+ 41. Kg2 {[%csl Gf6][%cal Ra7h7]} Nxg5 42. h4 $2 (42. Ra8+ $18 Rd8 43. Rxd8+ Kg7 44. Rd6) 42... Rxf6 $11 {The position is equal.} 43. hxg5 Rg6 44. Kg3 Rxg5+ 45. Kf4 Rg2 46. Kxf5 Rxf2+ 47. Kxe4 {Weighted Error Value: White=0.33/Black=0.23 (precise)} 1/2-1/2

[Event "Portugal-ch Seniors-50 2022"]
[Site "Atouguia da Baleia"]
[Date "2022.06.15"]
[Round "1.7"]
[White "Pinto Neto, Antonio de Padua"]
[Black "Fernandes, Alberto"]
[Result "0-1"]
[ECO "A02"]
[WhiteElo "1924"]
[BlackElo "2094"]
[Annotator "NA RC"]
[PlyCount "60"]
[EventDate "2022.06.09"]
[EventType "swiss"]
[EventCountry "POR"]
[SourceTitle "playchess.com"]
[Source "ChessBase"]
[SourceQuality "1"]
[TimeControl "5400+30"]

1. f4 Nf6 2. Nf3 c5 3. e3 Nc6 4. Bb5 e6 5. O-O Be7 6. b3 O-O 7. Bxc6 bxc6 8. Nc3 d6 9. d3 Nd5 10. Nxd5 cxd5 11. d4 a5 12. c3 Qb6 13. Qc2 h6 14. Kh1 Ba6 15. Rd1 f5 16. Bb2 Bf6 17. Rab1 Qc6 18. Qf2 Rab8 19. h4 Rb7 20. Qd2 Rc8 21. c4 dxc4 22. d5 exd5 23. Bxf6 gxf6 24. Qxd5+ Qxd5 25. Rxd5 Rc6 26. h5 Kf7 27. Rbd1 cxb3 28. axb3 Ke6 29. e4 fxe4 30. Nh4 Bd3 0-1

[Event "Portugal-ch Seniors-50 2022"]
[Site "Atouguia da Baleia"]
[Date "2022.06.15"]
[Round "1.8"]
[White "Tavares, Antonio Americo"]
[Black "Correia, Joao Pedro De Sousa"]
[Result "1-0"]
[ECO "A43"]
[WhiteElo "1933"]
[BlackElo "1848"]
[Annotator "NA RC"]
[PlyCount "73"]
[EventDate "2022.06.09"]
[EventType "swiss"]
[EventCountry "POR"]
[SourceTitle "playchess.com"]
[Source "ChessBase"]
[SourceQuality "1"]
[TimeControl "5400+30"]

1. d4 c5 2. e3 cxd4 3. exd4 Nf6 4. Nf3 d5 5. Bd3 Bg4 6. O-O e6 7. c3 Bd6 8. h3 Bh5 9. Nbd2 Nc6 10. b3 O-O 11. Bb2 e5 12. dxe5 Nxe5 13. Be2 Re8 14. Nxe5 Bxe2 15. Qxe2 Bxe5 16. Qd3 Nh5 17. g3 Qb6 18. Kg2 Qc6 19. Nf3 Rac8 20. Rfe1 Bf6 21. Rad1 Re4 22. Qxd5 Qxd5 23. Rxd5 Rxe1 24. Nxe1 g6 25. Rd7 Bxc3 26. Bxc3 Rxc3 27. Rxb7 Nf6 28. Rxa7 Rc1 29. Nd3 Rd1 30. Ne5 Ne4 31. Nxf7 Rd2 32. Nh6+ Kh8 33. Kf3 Nxf2 34. h4 Nh1 35. g4 Rh2 36. g5 Rxh4 37. Ra8+ 1-0

[Event "Portugal-ch Seniors-50 2022"]
[Site "Atouguia da Baleia"]
[Date "2022.06.15"]
[Round "1.9"]
[White "Arantes, Carlos Eduardo Gonca"]
[Black "Godinho Marques, Pedro"]
[Result "0-1"]
[ECO "A08"]
[WhiteElo "1722"]
[BlackElo "1838"]
[Annotator "NA RC COMBH"]
[PlyCount "118"]
[EventDate "2022.06.09"]
[EventType "swiss"]
[EventCountry "POR"]
[SourceTitle "playchess.com"]
[Source "ChessBase"]
[SourceQuality "1"]
[TimeControl "5400+30"]

1. Nf3 {[%emt 0:00:07]} c5 {[%emt 0:00:10]} 2. g3 {[%emt 0:00:33]} d5 {[%emt 0:01:05]} 3. Bg2 {[%emt 0:00:16]} Nc6 {[%emt 0:00:42]} 4. d4 {[%emt 0:00:42]} Nf6 {[%emt 0:04:29]} 5. O-O {[%emt 0:00:24]} e6 {[%emt 0:02:44]} 6. c4 {[%emt 0:01:24]} Be7 {[%emt 0:03:51]} 7. Nc3 {[%emt 0:03:05]} O-O {[%emt 0:00:25]} 8. dxc5 {[%emt 0:01:26]} Bxc5 {[%emt 0:09:46]} 9. cxd5 {[%emt 0:00:57]} exd5 {[%emt 0:00:54]} 10. Bg5 {[%emt 0:00:44]} d4 {[%emt 0:04:54]} 11. Bxf6 {[%emt 0:07:24]} Qxf6 {[%emt 0:00:15]} 12. Ne4 {[%emt 0:00:07]} Qe7 {[%emt 0:00:14]} 13. Nxc5 {[%emt 0:00:10]} Qxc5 {[%emt 0:00:06]} 14. Rc1 {[%emt 0:00:08]} Qb6 {[%emt 0:18:46]} 15. Qd2 {[%emt 0:02:25]} Be6 {[%emt 0:01:56]} 16. b3 {[%emt 0:04:16]} Rfd8 {[%emt 0:03:36]} 17. Rfd1 {[%emt 0:03:05]} a5 {[%emt 0:05:40]} 18. Ng5 {[%emt 0:05:05]} Bd5 {[%emt 0:02:41]} 19. Bxd5 {[%emt 0:02:04]} Rxd5 {[%emt 0:00:23]} 20. Qf4 {[%emt 0:00:09]} f6 {[%emt 0:23:49]} 21. Ne6 {[%emt 0:08:21]} Re5 {[%emt 0:06:57]} 22. Qg4 {[%emt 0:03:01]} g6 {[%emt 0:01:45]} 23. Nxd4 {[%emt 0:01:39]} f5 {[%emt 0:00:57]} 24. Rxc6 {[%emt 0:07:02]} bxc6 {[%emt 0:00:53]} 25. Qf3 {[%emt 0:01:06]} Rd8 {[%emt 0:00:50]} 26. e3 {[%emt 0:00:20]} Red5 {[%emt 0:01:01]} 27. Rc1 {[%emt 0:01:29]} c5 {[%emt 0:00:36]} 28. Nc2 {[%emt 0:00:16]} Qd6 {[%emt 0:00:21]} 29. Re1 {[%emt 0:07:16]} Rd1 {[%emt 0:01:55]} 30. Kg2 {[%emt 0:04:05]} Rxe1 {[%emt 0:01:44]} 31. Nxe1 {[%emt 0:00:07]} Qd5 {[%emt 0:00:17]} 32. Kf1 {[%emt 0:00:55]} Qxf3 {[%emt 0:00:28]} 33. Nxf3 {[%emt 0:00:06]} Kf7 {[%emt 0:00:45]} 34. Ke2 {[%emt 0:00:10]} Kf6 {[%emt 0:00:33]} 35. Nd2 {[%emt 0:00:04]} Ra8 {[%emt 0:00:36]} 36. a4 {[%emt 0:00:16]} Ke5 {[%emt 0:00:45]} 37. Kd3 {[%emt 0:00:25]} Rd8+ {[%emt 0:00:39]} 38. Kc3 {[%emt 0:00:18]} Ra8 {[%emt 0:01:24]} 39. f3 {[%emt 0:00:16]} Ra7 {[%emt 0:00:15]} 40. Nc4+ {[%emt 0:01:58]} Kd5 {[%emt 0:00:12]} 41. Nb6+ {[%emt 0:00:32]} Kc6 {[%emt 0:00:13]} 42. Nc4 {[%emt 0:00:43]} g5 {[%emt 0:00:36]} 43. e4 {[%emt 0:04:46]} fxe4 {[%emt 0:00:47]} 44. fxe4 {[%emt 0:00:08]} Ra6 {[%emt 0:00:07]} 45. g4 {[%emt 0:00:42]} Kc7 {[%emt 0:00:12]} 46. Kd3 {[%emt 0:01:05]} Rh6 {[%emt 0:00:32]} 47. Nxa5 {[%emt 0:00:14]} Rxh2 {[%emt 0:00:16]} 48. Kc4 {[%emt 0:00:01]} Kb6 {[%emt 0:00:32]} 49. e5 {[%emt 0:01:02]} Rh4 {[%emt 0:01:32]} 50. Kd5 {[%emt 0:00:32]} Kxa5 {[%emt 0:00:26]} 51. Kxc5 {[%emt 0:00:21]} Rxg4 {[%emt 0:00:24]} 52. Kd6 {[%emt 0:00:08]} Re4 {[%emt 0:00:24]} 53. Ke6 {[%emt 0:00:13]} g4 {[%emt 0:00:41]} 54. Kf5 {[%emt 0:00:12]} g3 {[%emt 0:00:25]} 55. Kxe4 {[%emt 0:00:02]} g2 {[%emt 0:00:07]} 56. Kf5 {[%emt 0:00:41]} g1=Q {[%emt 0:00:09]} 57. Kf6 {[%emt 0:00:17]} h5 {[%emt 0:00:08]} 58. e6 {[%emt 0:00:16]} h4 {[%emt 0:00:09]} 59. e7 {[%emt 0:00:28]} Qe1 {[%emt 0:00:09]} 0-1

[Event "Portugal-ch Seniors-50 2022"]
[Site "Atouguia da Baleia"]
[Date "2022.06.15"]
[Round "1.10"]
[White "Elias, Benjamim"]
[Black "Botelho, Adelino"]
[Result "1-0"]
[ECO "A03"]
[WhiteElo "1818"]
[BlackElo "1391"]
[Annotator "NA RC COMBH"]
[PlyCount "31"]
[EventDate "2022.06.09"]
[EventType "swiss"]
[EventCountry "POR"]
[SourceTitle "playchess.com"]
[Source "ChessBase"]
[SourceQuality "1"]
[TimeControl "5400+30"]

1. f4 {[%emt 0:00:53]} d5 {[%emt 0:00:35]} 2. e3 {[%emt 0:00:07]} Nf6 {[%emt 0:00:28]} 3. Nf3 {[%emt 0:00:08]} Bg4 {[%emt 0:01:52]} 4. Be2 {[%emt 0:00:09]} e6 {[%emt 0:00:17]} 5. Ne5 {[%emt 0:01:17]} Bxe2 {[%emt 0:00:46]} 6. Qxe2 {[%emt 0:00:09]} Bd6 {[%emt 0:01:12]} 7. Qb5+ {[%emt 0:02:01]} Nbd7 {[%emt 0:05:41]} 8. Nxd7 {[%emt 0:00:47]} Nxd7 {[%emt 0:00:45]} 9. Qxb7 {[%emt 0:00:32]} O-O {[%emt 0:03:23]} 10. O-O {[%emt 0:00:40]} g5 {[%emt 0:02:45]} 11. d4 {[%emt 0:03:02]} gxf4 {[%emt 0:02:27]} 12. exf4 {[%emt 0:00:11]} Qf6 {[%emt 0:01:48]} 13. c3 {[%emt 0:00:47]} Nb6 {[%emt 0:06:05]} 14. Qa6 {[%emt 0:00:32]} c5 {[%emt 0:00:46]} 15. Qd3 {[%emt 0:00:51]} Bc7 {[%emt 0:06:22]} 16. dxc5 {[%emt 0:00:47]} 1-0

[Event "Portugal-ch Seniors-50 2022"]
[Site "Atouguia da Baleia"]
[Date "2022.06.16"]
[Round "2.6"]
[White "Fernandes, Alberto"]
[Black "Elias, Benjamim"]
[Result "1-0"]
[ECO "B08"]
[WhiteElo "2094"]
[BlackElo "1818"]
[Annotator "NA RC"]
[PlyCount "51"]
[EventDate "2022.06.09"]
[EventType "swiss"]
[EventCountry "POR"]
[SourceTitle "playchess.com"]
[Source "ChessBase"]
[SourceQuality "1"]
[TimeControl "5400+30"]

1. e4 {[%emt 0:09:52]} d6 {[%emt 0:00:12]} 2. d4 {[%emt 0:00:51]} Nf6 {[%emt 0:00:12]} 3. Nc3 {[%emt 0:00:10]} g6 {[%emt 0:00:22]} 4. Nf3 {[%emt 0:00:09]} Bg7 {[%emt 0:01:10]} 5. Be2 {[%emt 0:00:18]} c6 {[%emt 0:02:20]} 6. a4 {[%emt 0:01:03]} a5 {[%emt 0:00:36]} 7. O-O {[%emt 0:00:19]} O-O {[%emt 0:00:18]} 8. h3 {[%emt 0:00:17]} Na6 {[%emt 0:02:38]} 9. Be3 {[%emt 0:01:14]} Re8 {[%emt 0:00:34]} 10. Qd2 {[%emt 0:01:59]} Qc7 {[%emt 0:01:49]} 11. Rad1 {[%emt 0:06:19]} Nb4 {[%emt 0:01:55]} 12. Bc4 {[%emt 0:20:03]} e6 {[%emt 0:07:26]} 13. Bb3 {[%emt 0:02:22]} Bd7 {[%emt 0:18:52]} 14. Rfe1 {[%emt 0:04:48]} Rf8 {[%emt 0:05:24]} 15. Bf4 {[%emt 0:02:00]} Ne8 {[%emt 0:00:22]} 16. e5 {[%emt 0:00:53]} d5 {[%emt 0:00:47]} 17. Ne2 {[%emt 0:01:20]} c5 {[%emt 0:01:10]} 18. c3 {[%emt 0:01:00]} Na6 {[%emt 0:01:11]} 19. Bxd5 {[%emt 0:00:28]} Bxa4 {[%emt 0:00:36]} 20. Ra1 {[%emt 0:00:50]} Bc6 {[%emt 0:01:05]} 21. Bxc6 {[%emt 0:00:28]} bxc6 {[%emt 0:00:13]} 22. Ng3 {[%emt 0:02:31]} Qb6 {[%emt 0:00:26]} 23. Ne4 {[%emt 0:00:45]} Nec7 {[%emt 0:02:54]} 24. Nf6+ {[%emt 0:05:16]} Bxf6 {[%emt 0:02:29]} 25. exf6 {[%emt 0:00:11]} cxd4 {[%emt 0:03:31]} 26. Be5 1-0

[Event "Portugal-ch Seniors-50 2022"]
[Site "Atouguia da Baleia"]
[Date "2022.06.16"]
[Round "2.7"]
[White "Cavadas, Jose"]
[Black "Tavares, Antonio Americo"]
[Result "1-0"]
[ECO "E21"]
[WhiteElo "1382"]
[BlackElo "1933"]
[Annotator "TA"]
[PlyCount "69"]
[EventDate "2022.06.09"]
[EventType "swiss"]
[EventCountry "POR"]
[SourceTitle "playchess.com"]
[Source "ChessBase"]
[SourceQuality "1"]
[TimeControl "5400+30"]

{[%evp 22,69,27,4,18,12,18,12,33,0,15,0,1,0,66,-27,-35,-24,-29,-35,14,-33,16,-145,-140,-177,-168,-241,-223,-274,-138,-443,-440,-437,-451,-569,-558,-869,-375,-371,-376,-371,-350,-358,-362,-375,-190,-163,1240,1229]} 1. d4 Nf6 2. Nf3 e6 3. c4 b6 4. Nc3 Bb7 5. Bg5 Be7 6. e3 O-O 7. Bd3 d5 8. O-O Nbd7 9. Rc1 Ne4 10. Bxe7 Qxe7 11. cxd5 exd5 12. Qe2 a5 {D55: Queen's Gambit Declined: 4 Bg5 Be7: Lines without ...h6 and 6...h6 7 Bxf6.} 13. Rfe1 {[#]} f5 $146 ({Predecessor:} 13... c5 14. Bb5 Nxc3 15. bxc3 Nf6 16. Qb2 Qd6 17. Rb1 Rfb8 18. Qa3 Qc7 19. Ne5 Ba6 20. Nf3 Bxb5 21. Rxb5 {½-½ (50) Melnichuk,M (2280)-Vetoshko,V (2079) Lubin 2009}) 14. a3 Kh8 {The position is equal.} 15. Bb1 c6 16. Qd1 g5 {[%cal Bg7g5,Bg5g4][%mdl 32]} 17. Nd2 Qf6 (17... Nd6 $11) 18. Nf3 (18. Ncxe4 $14 dxe4 19. f3) 18... g4 $11 19. Ne5 Nxe5 20. dxe5 Qe6 (20... Qxe5 $15 21. Qd4 Qxd4 22. exd4 Rab8) 21. Ne2 (21. Bxe4 $11 {should be considered.} dxe4 22. Qd6 Qxd6 23. exd6) 21... c5 (21... Qxe5 $15 22. Nf4 Rf7) 22. Ba2 $2 {[#]} ({White should try} 22. b4 $11) 22... Qxe5 $17 23. Qb3 Rf6 24. Red1 (24. Ng3 {was worth a try.}) 24... Re8 {Hoping for ...c4.} 25. Nf4 {[%cal Be2f4,Bf4d5,Bd5f6,Bf6d7,Bd7c5,Bc5e6][%mdl 32]} c4 (25... d4 $19 {Strongly threatening ...Ba6.} 26. Nd3 Qd6 27. exd4 Qxd4) 26. Qb5 $2 {[%mdl 8192] [#] Against Ba6} (26. Qc2 $17) 26... Nxf2 $1 $19 {[%mdl 512]} 27. Re1 Ne4 28. Rcd1 Nc5 {White must now prevent ...Ba6.} 29. Nxd5 Ba6 ({Stronger than} 29... Bxd5 30. Rxd5 Qxd5 31. Qxe8+ Kg7 32. Qe7+ Kg6 33. Qe8+ Kh6 34. Rf1 $17) (29... Rh6 $142 30. Nf4 Ba6 31. Qxe8+ Qxe8) 30. Qxe8+ Qxe8 31. Nxf6 Qe5 {[%csl LRb2,LRf6]} 32. Rd8+ Kg7 33. Nd7 Qc7 (33... Qxb2 $142 {( -> ...Bb7)} 34. Nxc5 bxc5) 34. Nxc5 Qxd8 $4 {[%mdl 8192]} (34... Qxc5 $19 35. Bb1 Bc8) 35. Ne6+ {White used his chance.  Weighted Error Value: White=0.71/Black=0.57} 1-0

[Event "Portugal-ch Seniors-50 2022"]
[Site "Atouguia da Baleia"]
[Date "2022.06.16"]
[Round "2.8"]
[White "Godinho Marques, Pedro"]
[Black "Galvao, Henrique"]
[Result "0-1"]
[ECO "A45"]
[WhiteElo "1838"]
[BlackElo "2118"]
[Annotator "NA RC"]
[PlyCount "42"]
[EventDate "2022.06.09"]
[EventType "swiss"]
[EventCountry "POR"]
[SourceTitle "playchess.com"]
[Source "ChessBase"]
[SourceQuality "1"]
[TimeControl "5400+30"]

1. d4 Nf6 2. Bf4 c5 3. d5 d6 4. c4 g6 5. Nc3 Bg7 6. e4 O-O 7. Qd2 Re8 8. O-O-O b5 9. Bd3 bxc4 10. Bc2 a5 11. f3 Na6 12. a3 Nb4 13. g4 Qb6 14. h4 Nfxd5 15. axb4 Nxc3 16. bxc3 axb4 17. cxb4 c3 18. Qh2 Qxb4 19. Bb1 Ra1 20. Kc2 Ba6 21. Rc1 Qa4# 0-1

[Event "Portugal-ch Seniors-50 2022"]
[Site "Atouguia da Baleia"]
[Date "2022.06.16"]
[Round "2.9"]
[White "Da Silva, Reinaldo S.B."]
[Black "Pinto Neto, Antonio de Padua"]
[Result "1-0"]
[ECO "D38"]
[WhiteElo "2340"]
[BlackElo "1924"]
[Annotator "TA"]
[PlyCount "116"]
[EventDate "2022.06.09"]
[EventType "swiss"]
[EventCountry "POR"]
[SourceTitle "playchess.com"]
[Source "ChessBase"]
[SourceQuality "1"]
[TimeControl "5400+30"]

{[%evp 12,116,5,17,40,35,39,40,44,0,21,20,23,11,58,42,45,43,45,41,50,48,56,25,50,0,0,-54,-10,-9,0,-44,0,-31,-17,-61,-24,-31,58,56,85,85,140,91,85,67,73,78,141,41,41,40,41,18,11,17,35,9,475,-27,-29,-114,-34,-16,-33,-326,-56,-526,-521,-526,-518,-479,-516,-1004,-946,-998,-958,-927,-834,-1202,-914,-1114,-823,-1038,-668,-833,-825,-809,-747,-764,-781,-1041,-987,-1028,-863,-838,-852,-839,-822,-910,-937,-911,-854,-1022,-1006,-946,-835]} 1. Nf3 {[%emt 0:00:06]} d5 {[%emt 0:00:00]} 2. d4 {[%emt 0:00:33]} Nf6 {[%emt 0:00:39]} 3. c4 {[%emt 0:00:11]} e6 {[%emt 0:00:27]} 4. Nc3 {[%emt 0:00:20]} Bb4 {[%emt 0:00:25]} 5. e3 {[%emt 0:03:04]} O-O {[%emt 0:02:02]} 6. Bd3 {[%emt 0:01:17]} dxc4 {[%emt 0:10:21] is now more promising than 6...c5.} 7. Bxc4 {[%emt 0:00:48]} Bxc3+ {[%emt 0:00:39] E51: Nimzo-Indian: Rubinstein: 4...0-0 5 Nf3 d5.} 8. bxc3 {[%emt 0:00:13]} b6 {[%emt 0:06:58] [#]} 9. Bd3 $146 {[%emt 0:09:42]} ({Predecessor:} 9. Ba3 Ba6 10. Bxa6 Nxa6 11. Qa4 Nb8 12. Bxf8 Kxf8 13. O-O Qd7 14. Qb4+ Kg8 15. Ne5 {1-0 (24) Thew,B (2154)-White,C (1750) ICCF email 2015}) 9... Bb7 {[%emt 0:02:14] Against e4. White is slightly better.} 10. Qc2 {[%emt 0:00:53]} h6 {[%emt 0:18:36]} 11. Ba3 {[%emt 0:13:32]} Re8 {[%emt 0:00:12]} 12. e4 {[%emt 0:01:18]} Nfd7 {[%emt 0:00:41]} (12... c5 $11 {should be considered.}) 13. O-O {[%emt 0:06:40]} c5 {[%emt 0:05:04]} 14. Rfd1 {[%emt 0:02:42][%cal Od4d5]} Qc7 {[%emt 0:07:17]} 15. Qe2 {[%emt 0:06:51]} Nc6 {[%emt 0:01:51]} 16. Rac1 {[%emt 0:07:42]} Ne7 {[%emt 0:06:58]} 17. Bb5 {[%emt 0:05:34]} Bc6 {[%emt 0:00:21]} 18. dxc5 {[%emt 0:09:20]} (18. Ba6 $14) 18... bxc5 $11 {[%emt 0:06:27]} 19. Qc4 {[%emt 0:06:25]} (19. Bxc6 $11 Qxc6 20. Qe3) 19... a6 {[%emt 0:09:06]} 20. Bxc6 {[%emt 0:02:01]} ({Not} 20. Bxa6 $2 Qb6 21. Rxd7 Bxd7 22. Bxc5 Qxa6 $19) 20... Qxc6 {[%emt 0:01:12]} 21. Rd2 {[%emt 0:03:59]} Rec8 {[%emt 0:03:55]} 22. Rcd1 {[%emt 0:02:27]} (22. Qd3 $5 {[%cal Rd3d7]} Nf6 23. Re1 $11) 22... Nf6 {[%emt 0:02:52]} 23. Re2 {[%emt 0:03:56]} Qb5 {[%emt 0:00:29]} (23... Ng6 $5 {[%cal Rc6b5]}) 24. Ne5 {[%emt 0:04:40]} Qxc4 {[%emt 0:05:14]} (24... Nc6 $15 25. Qxb5 axb5 26. Nxc6 Rxc6) 25. Nxc4 $14 {[%emt 0:00:02]} g5 {[%emt 0:01:20]} 26. f3 {[%emt 0:01:06] White is more active.} Kg7 {[%emt 0:01:23] [#]} (26... Rc7 $142) 27. Red2 {[%emt 0:00:04]} (27. Nb6 $142 $1 {[%cal Rb6a8]}) 27... Rc7 $16 {[%emt 0:01:45]} 28. Rd6 {[%emt 0:01:41]} Ng6 {[%emt 0:01:09]} 29. Kf2 {[%emt 0:01:40]} h5 {[%emt 0:00:45]} (29... a5 $142) 30. Rb1 {[%emt 0:00:31]} ({White should try} 30. Bc1 $16) 30... Nd7 $14 {[%emt 0:01:18]} 31. Bc1 {[%emt 0:01:08]} Kf6 {[%emt 0:00:24]} 32. Ne3 {[%emt 0:00:51]} Ke7 {[%emt 0:00:47]} 33. Rd1 {[%emt 0:02:30]} f6 {[%emt 0:00:23]} 34. Ba3 {[%emt 0:00:45]} Rb8 $2 {[%emt 0:02:05][%mdl 8192] [#]} (34... Raa7 $11 {and Black is okay.}) 35. g3 $2 {[%emt 0:00:45]} (35. Rxd7+ $1 $18 {[%mdl 512]} Rxd7 36. Bxc5+ Kf7 37. Rxb8) 35... Rb5 $11 {[%emt 0:00:24]} 36. Nc4 {[%emt 0:00:47]} (36. Rb3 $11) 36... Rcb7 {[%emt 0:00:42]} (36... Nge5 $17 37. Ne3 Rcb7) 37. Rbc1 {[%emt 0:00:05]} Rb8 {[%emt 0:00:54]} 38. Ke3 $2 {[%emt 0:01:18][%mdl 8192] Black keeps a firm grip on the game.} (38. Rc2 $1 $15) 38... Nde5 $2 {[%emt 0:00:22]} (38... Nge5 $19 39. Rxd7+ Kxd7 40. Nxe5+ fxe5) 39. Nxe5 {[%emt 0:01:28][%mdl 8192]} (39. Rd4 $1 $15) 39... Nxe5 $19 {[%emt 0:00:10] Black is clearly winning.} 40. Kf2 {[%emt 0:00:58]} Nc4 {[%emt 0:00:27]} 41. Bxc5+ {[%emt 0:00:16]} Rxc5 {[%emt 0:00:04]} 42. Rd4 {[%emt 0:00:16]} (42. Rc2 $142) 42... e5 {[%emt 0:00:27]} 43. Rd3 {[%emt 0:00:15]} Rb2+ {[%emt 0:00:08]} 44. Kg1 {[%emt 0:00:12]} Rxa2 {[%emt 0:00:32]} 45. Rcd1 {[%emt 0:00:14]} Rc7 {[%emt 0:00:12] And now ...Rb7 would win.} 46. Rd8 {[%emt 0:00:53]} Ke6 {[%emt 0:00:45]} 47. Rh8 {[%emt 0:00:25]} Rd7 {[%emt 0:00:57][%cal Rd7d1]} 48. Re8+ {[%emt 0:00:29]} Kf7 {[%emt 0:00:24][%cal Rd7d1]} 49. Rxd7+ {[%emt 0:00:42]} Kxe8 {[%emt 0:00:07][%mdl 4096] Endgame KRN-KR} 50. Rc7 {[%emt 0:00:30]} Nd6 {[%emt 0:00:16]} 51. Rc6 {[%emt 0:00:37]} Kd7 {[%emt 0:00:10]} 52. Rc5 Nb7 {[%emt 0:00:36]} 53. Rd5+ {[%emt 0:01:04]} Kc6 {[%emt 0:00:08]} 54. f4 {[%emt 0:00:12]} Ra5 {[%emt 0:00:13]} 55. Rd3 {[%emt 0:00:31]} g4 {[%emt 0:00:39]} 56. Rd1 {[%emt 0:00:46]} Ra2 {[%emt 0:00:25] aiming for ...a5.} 57. fxe5 {[%emt 0:00:08]} fxe5 {[%emt 0:00:33] White must now prevent ...a5.} 58. Rf1 {[%emt 0:00:05]} Re2 {[%mdl 32768] Weighted Error Value: White=0.91/Black=0.69. Loss on time!?} 1-0